Workbook

Sheet Приложение 1
A1: ПРИЛОЖЕНИЕ 1
A2: Обект | B2: Отдел и под-отдел | C2: Дървесен вид | D2: Сортимент | E2: мерна единица | F2: Прогнозно количество дървесина пр.куб.м. | G2: Начална цена лв./м3 без ДДС | H2: Обща цена. лв. без ДДС | I2: Гаранция за участие, лв. | J2: Стъпка на наддаване, лв.
A3: 2020-01-18 | B3: 389 ж | C3: черен | D3: Едра - трупи за бичене - d на т.к. 18-29 см | E3: пл.куб.м. | F3: 7 | G3: 57 | H3: =AVERAGE(F3*G3) -> 399
C4: бор | D4: Средна - технологична д-на | E4: пр.куб.м. | F4: 22 | G4: 23 | H4: =AVERAGE(F4*G4) -> 506
D5: Дребна - технологична д-на | E5: пр.куб.м.
D6: Дърва - дърва за огрев | E6: пр.куб.м. | F6: 73 | G6: 23 | H6: =AVERAGE(F6*G6) -> 1679
C7: смърч | D7: Едра - трупи за бичене - d на т.к. 18-29 см | E7: пл.куб.м.
D8: Средна - технологична д-на | E8: пр.куб.м. | F8: 15 | G8: 23 | H8: =AVERAGE(F8*G8) -> 345
D9: Дребна - технологична д-на | E9: пр.куб.м. | F9: 3 | G9: 23 | H9: 69
D10: Дърва - дърва за огрев | E10: пр.куб.м. | F10: 33 | G10: 23 | H10: 759
D12: Всичко за подотдела: | E12: пл.куб.м. | F12: 95 | H12: =SUM(H3:H11) -> 3757
B14: 392 а | C14: черен | D14: Едра - трупи за бичене - d на т.к. 18-29 см | E14: пл.куб.м. | F14: 20 | G14: 57 | H14: =AVERAGE(F14*G14) -> 1140
C15: бор | D15: Средна - технологична д-на | E15: пр.куб.м. | F15: 43 | G15: 23 | H15: 989
D16: Дребна - технологична д-на | E16: пр.куб.м.
D17: Дърва - дърва за огрев | E17: пр.куб.м. | F17: 75 | G17: 23 | H17: =AVERAGE(F17*G17) -> 1725
D19: Всичко за подотдела: | E19: пл.куб.м. | F19: 91 | H19: =SUM(H14:H18) -> 3854
B21: 406 а | C21: черен | D21: Едра - трупи за бичене - d на т.к. 18-29 см | E21: пл.куб.м. | F21: 28 | G21: 57 | H21: =AVERAGE(F21*G21) -> 1596
C22: бор | D22: Средна - технологична д-на | E22: пр.куб.м. | F22: 52 | G22: 23 | H22: 1196
D23: Дребна - технологична д-на | E23: пр.куб.м.
D24: Дърва - дърва за огрев | E24: пр.куб.м. | F24: 95 | G24: 23 | H24: =AVERAGE(F24*G24) -> 2185
C25: липа | D25: Едра - трупи за бичене - d на т.к. 18-29 см | E25: пл.куб.м.
D26: Средна - технологична д-на | E26: пр.куб.м.
D27: Дребна - технологична д-на | E27: пр.куб.м.
D28: Дърва - дърва за огрев | E28: пр.куб.м. | F28: 13 | G28: 19 | H28: =AVERAGE(F28*G28) -> 247
D30: Всичко за подотдела: | E30: пл.куб.м. | F30: 124 | H30: =SUM(H21:H29) -> 5224
B32: 406 ж | C32: черен | D32: Едра - трупи за бичене - d на т.к. 18-29 см | E32: пл.куб.м. | F32: 19 | G32: 57 | H32: =AVERAGE(F32*G32) -> 1083
C33: бор | D33: Средна - технологична д-на | E33: пр.куб.м. | F33: 30 | G33: 23 | H33: 690
D34: Дребна - технологична д-на | E34: пр.куб.м.
D35: Дърва - дърва за огрев | E35: пр.куб.м. | F35: 47 | G35: 23 | H35: =AVERAGE(F35*G35) -> 1081
D37: Всичко за подотдела: | E37: пл.куб.м. | F37: 65 | H37: =SUM(H32:H36) -> 2854
B40: Общо за обекта: | E40: пл.куб.м. | F40: 375 | H40: 15689 | I40: 784 | J40: 157
